lending/lending_fUSD_20251018
["ID","MTS","AMOUNT","RATE_DAILY","PERIOD"]
[391723939,1760753432413,-155.94429842,0.000186,2]
[391723941,1760753432422,-150.85698122,0.000187,2]
[391723943,1760753432432,-195.0,0.000187,2]
[391723944,1760753432441,-300.0,0.00019,2]
[391723945,1760753432451,-151.0,0.00019178,2]
[391723946,1760753432461,-154.47,0.00019361,2]
[391723947,1760753432470,-156.587,0.00019726,2]
[391723948,1760753432480,-1200.0,0.00019799,2]
[391723949,1760753432489,-160.0,0.000198,2]
[391723950,1760753432500,-160.0,0.000198,2]
[391723951,1760753432509,-160.0,0.000198,2]
[391723952,1760753432518,-160.0,0.000198,2]
[391723953,1760753432528,-160.0,0.000198,3]
[391723954,1760753432538,-160.0,0.000198,3]
[391723955,1760753432548,-265.29,0.00019955,2]
[391723956,1760753432557,-300.0,0.00019998,2]
[391723957,1760753432567,-160.0,0.0002,4]
[391723958,1760753432576,-160.0,0.0002,4]
[391723959,1760753432586,-160.0,0.0002,4]
[391723960,1760753432595,-160.0,0.0002,4]
[391723961,1760753432604,-475.74147678,0.00020075,2]
[391723962,1760753432613,-1700.79257095,0.000201,2]
[391723963,1760753432623,-150.0,0.000201,2]
[391723964,1760753432632,-375.23,0.00020187,2]
[391723965,1760753432641,-500.0,0.00020219,2]
[391723966,1760753432650,-162.380719,0.00020274,2]
[391723967,1760753432660,-154.47,0.00020283,2]
[391723968,1760753432669,-1700.79257095,0.000203,2]
[391723969,1760753432678,-2751.0,0.00020352,2]
[391723970,1760753432688,-1700.79257095,0.000205,2]
[391723971,1760753432697,-166.66,0.00020516,2]
[391723972,1760753432706,-1000.0,0.00020554,2]
[391723973,1760753432716,-1700.79257095,0.000207,2]
[391723974,1760753432725,-1526.25,0.00020762,2]
[391723975,1760753432735,-523.0,0.00020762,2]
[391723976,1760753432744,-500.0,0.00020763,2]
[391723977,1760753432753,-312.24688959,0.00020763,2]
[391723978,1760753432818,-187.75311041,0.00020763,2]
[391723979,1760753432827,-522.24667481,0.00020763,2]
[391723980,1760753432837,-151.0,0.00020763,2]
[391723981,1760753432846,-200.0,0.00020763,2]
[391723982,1760753432855,-151.0,0.00020763,2]
[391723983,1760753432865,-200.0,0.00020763,2]
[391723984,1760753432875,-151.0,0.00020763,2]
[391723985,1760753432884,-151.0,0.00020763,2]
[391723986,1760753432894,-151.0,0.00020763,2]
[391723987,1760753432903,-151.0,0.00020763,2]
[391723988,1760753432913,-151.0,0.00020763,2]
[391723989,1760753432922,-151.0,0.00020763,2]
[391723990,1760753432931,-151.0,0.00020763,2]
[391723991,1760753432940,-151.0,0.00020763,2]
[391723992,1760753432950,-151.0,0.00020763,2]
[391723993,1760753432959,-151.0,0.00020763,2]
[391723994,1760753432968,-151.0,0.00020763,2]
[391723995,1760753432977,-151.0,0.00020763,2]
[391723996,1760753432986,-169.53080825,0.00020763,2]
[391723997,1760753432995,-151.0,0.00020763,2]
[391723998,1760753433006,-151.0,0.00020763,2]
[391723999,1760753433015,-151.0,0.00020763,2]
[391724000,1760753433025,-151.0,0.00020763,2]
[391724001,1760753433034,-151.0,0.00020763,2]
[391724002,1760753433043,-200.0,0.00020763,2]
[391724003,1760753433052,-151.0,0.00020763,2]
[391724004,1760753433061,-151.0,0.00020763,2]
[391724005,1760753433070,-151.0,0.00020763,2]
[391724006,1760753433079,-151.0,0.00020763,2]
[391724007,1760753433088,-151.0,0.00020763,2]
[391724008,1760753433098,-273.85065369,0.00020763,2]
[391724009,1760753433107,-500.0,0.00020773,2]
[391724010,1760753433117,-500.0,0.00020773,2]
[391724011,1760753433127,-1002.2457349,0.00020774,2]
[391724012,1760753433136,-50502.5547258,0.00020775,2]
[391724013,1760753433146,-10535.9730384,0.00020775,2]
[391724014,1760753433155,-477.544422,0.00020775,2]
[391724015,1760753433164,-31857.8650334,0.00020775,2]
[391724016,1760753433177,-23014.4171807,0.00020775,2]
[391724017,1760753433187,-172.762789,0.00020775,2]
[391724018,1760753433196,-7397.5335334,0.00020775,2]
[391724019,1760753433205,-314.52682672,0.000208,2]
[391724020,1760753433214,-168.3888056,0.00020822,2]
[391724021,1760753433224,-1700.79257095,0.000209,2]
[391724022,1760753433233,-166.66,0.00020947,2]
[391724023,1760753433243,-350.0,0.00021,2]
[391724024,1760753433252,-254.55,0.0002103,2]
[391724025,1760753433262,-1526.25,0.00021036,2]
[391724026,1760753433271,-1700.79257095,0.000211,2]
[391724027,1760753433280,-160.0,0.000211,5]
[391724028,1760753433291,-160.0,0.000211,5]
[391724029,1760753433301,-160.0,0.000211,5]
[391724030,1760753433314,-707.10990997,0.000211,2]
[391724031,1760753433324,-226.86861653,0.000211,2]
[391724032,1760753433334,-1700.79257095,0.000213,2]
[391724033,1760753433344,-1526.25,0.0002131,2]
[391724034,1760753433356,-201.31178177,0.00021311,2]
[391724035,1760753433365,-201.50456686,0.00021311,2]
[391724036,1760753433375,-1000.0,0.00021321,2]
[391724037,1760753433386,-1000.0,0.00021321,2]
[391724038,1760753433395,-1000.0,0.00021325,2]
[391724039,1760753433405,-268.32531319,0.0002137,2]
[391724040,1760753433414,-166.66,0.00021379,2]
[391724041,1760753433423,-1700.79257095,0.000215,2]
[391724042,1760753433433,-1526.25,0.00021584,2]
[391724043,1760753433442,-1680.0,0.00021667,2]
[391724044,1760753433451,-1700.79257095,0.000217,2]
[391724045,1760753433460,-305.0,0.00021776,2]
[391724046,1760753433470,-166.66,0.00021811,2]
[391724047,1760753433479,-1526.25,0.00021858,2]
[391724048,1760753433489,-1593.7806938,0.00021868,2]
[391724049,1760753433498,-1500.0,0.00021868,2]
[391724050,1760753433507,-600.0,0.00021918,2]
[391724051,1760753433517,-1700.79257095,0.00022,2]
[391724052,1760753433527,-1000.0,0.00022096,2]
[391724053,1760753433536,-1526.25,0.00022132,2]
[391724054,1760753433550,-166.66,0.00022243,30]
[391724055,1760753433561,-1526.25,0.00022406,2]
[391724056,1760753433573,-2000.0,0.00022416,2]
[391724057,1760753433582,-600.0,0.00022466,2]
[391724058,1760753433591,-166.66,0.00022675,30]
[391724059,1760753433601,-1526.25,0.0002268,2]
[391724060,1760753433611,-1000.0,0.00022866,2]
[391724061,1760753433621,-502.0,0.00022877,2]
[391724062,1760753433630,-1526.25,0.00022954,2]
[391724063,1760753433639,-2500.0,0.00022964,2]
[391724064,1760753433648,-845.61685842,0.00023,2]
[391724065,1760753433658,-400.0,0.00023,2]
[391724066,1760753433667,-7397.5335334,0.00023003,2]
[391724067,1760753433677,-600.0,0.00023014,2]
[391724068,1760753433687,-23014.4171807,0.00023141,2]
[391724069,1760753433696,-845.61685842,0.000232,2]
[391724070,1760753433705,-1526.25,0.00023228,2]
[391724071,1760753433715,-500.0,0.00023257,2]
[391724072,1760753433725,-500.0,0.00023257,2]
[391724073,1760753433735,-500.0,0.00023257,2]
[391724074,1760753433744,-500.0,0.00023257,2]
[391724075,1760753433754,-467.47386705,0.00023257,2]
[391724076,1760753433763,-274.163763,0.00023257,2]
[391724077,1760753433772,-31857.8650334,0.00023258,2]
[391724078,1760753433781,-213.8292751,0.00023268,2]
[391724079,1760753433791,-6617.6212,0.00023277,2]
[391724080,1760753433800,-233.4642,0.00023277,2]
[391724081,1760753433810,-278.7083,0.00023277,2]
[391724082,1760753433819,-4055.4149,0.00023277,2]
[391724083,1760753433830,-2134.2548,0.00023277,2]
[391724084,1760753433840,-151.0,0.00023365,7]
[391724085,1760753433849,-16784.32,0.00023368,2]
[391724086,1760753433859,-9999.99,0.00023368,2]
[391724087,1760753433868,-6366.18,0.00023368,2]
[391724088,1760753433878,-19999.99,0.00023368,2]
[391724089,1760753433887,-21651.79,0.00023368,2]
[391724090,1760753433896,-10535.9730384,0.00023377,2]
[391724091,1760753433905,-477.544422,0.00023387,2]
[391724092,1760753433915,-31828.0,0.000234,2]
[391724093,1760753433925,-404.19242955,0.00023409,2]
[391724094,1760753433935,-33127.282,0.00023409,2]
[391724095,1760753433945,-2207.7201,0.00023409,2]
[391724096,1760753433962,-1000.0,0.00023409,2]
[391724097,1760753433975,-1000.0,0.00023409,2]
[391724098,1760753433985,-2500.0,0.00023409,2]
[391724099,1760753433995,-162.83,0.00023489,2]
[391724100,1760753434005,-845.61685842,0.000235,2]
[391724101,1760753434015,-225.4948175,0.00023502,2]
[391724102,1760753434025,-1526.25,0.00023502,2]
[391724103,1760753434034,-151.0,0.00023506,7]
[391724104,1760753434044,-316.0,0.00023508,2]
[391724105,1760753434054,-204133.41527728,0.00023509,2]
[391724106,1760753434064,-50502.5547258,0.00023509,2]
[391724107,1760753434074,-2272.58603178,0.00023512,2]
[391724108,1760753434084,-600.0,0.00023562,2]
[391724109,1760753434094,-500.0,0.00023573,2]
[391724110,1760753434104,-500.0,0.00023573,2]
[391724111,1760753434114,-500.94167572,0.00023573,2]
[391724112,1760753434124,-500.0,0.00023573,2]
[391724113,1760753434134,-326.8666746,0.00023573,2]
[391724114,1760753434363,-500.0,0.00023573,2]
[391724115,1760753434373,-500.0,0.00023573,2]
[391724116,1760753434385,-500.4055836,0.00023573,2]
[391724117,1760753434394,-174.28089542,0.00023573,2]
[391724118,1760753434404,-500.0,0.00023573,2]
[391724119,1760753434414,-500.0,0.00023573,2]
[391724120,1760753434423,-500.0,0.00023573,2]
[391724121,1760753434432,-524.04491401,0.00023573,2]
[391724122,1760753434442,-500.0,0.00023573,2]
[391724123,1760753434451,-500.0,0.00023573,2]
[391724124,1760753434461,-500.0,0.00023573,2]
[391724125,1760753434470,-205.10173407,0.00023573,2]
[391724126,1760753434480,-200.0,0.00023573,2]
[391724127,1760753434489,-500.0,0.00023573,2]
[391724128,1760753434499,-500.45254103,0.00023573,2]
[391724129,1760753434508,-500.0,0.00023573,2]
[391724130,1760753434517,-500.0,0.00023573,2]
[391724131,1760753434527,-500.0,0.00023573,2]
[391724132,1760753434536,-419.74750804,0.00023573,2]
[391724133,1760753434545,-500.0,0.00023573,2]
[391724134,1760753434555,-500.0,0.00023573,2]
[391724135,1760753434564,-164.88676562,0.00023573,2]
[391724136,1760753434574,-500.0,0.00023573,2]
[391724137,1760753434583,-157.49202233,0.00023573,2]
[391724138,1760753434592,-2000.0,0.000236,2]
[391724139,1760753434601,-1000.0,0.00023637,2]
[391724140,1760753434611,-845.61685842,0.000237,2]
[391724141,1760753434620,-2351.0,0.00023711,2]
[391724142,1760753434630,-1526.29612077,0.00023776,2]
[391724143,1760753434639,-845.61685842,0.000239,2]
[391724144,1760753434648,-376.79991058,0.0002394,2]
[391724145,1760753434658,-887.09,0.00023981,2]
[391724146,1760753434667,-166.0,0.00024,7]
[391724147,1760753434677,-5512.0,0.00024,3]
[391724148,1760753434687,-168.27,0.0002411,2]
[391724149,1760753434696,-600.0,0.0002411,2]
[391724150,1760753434706,-208.27675926,0.00024121,2]
[391724151,1760753434715,-1000.0,0.00024121,2]
[391724152,1760753434725,-1000.0,0.00024121,2]
[391724153,1760753434735,-1000.0,0.00024121,2]
[391724154,1760753434744,-1001.14361884,0.00024121,2]
[391724155,1760753434754,-1000.0,0.00024121,2]
[391724156,1760753434764,-1000.0,0.00024121,2]
[391724157,1760753434774,-1000.0,0.00024121,2]
[391724158,1760753434784,-1001.28873459,0.00024121,2]
[391724159,1760753434793,-1000.0,0.00024121,2]
[391724160,1760753434803,-1000.0,0.00024121,2]
[391724161,1760753434813,-866.11254189,0.00024121,2]
[391724162,1760753434823,-1000.0,0.00024121,2]
[391724163,1760753434832,-502.63541374,0.00024121,2]
[391724164,1760753434841,-1000.0,0.00024121,2]
[391724165,1760753434851,-1000.0,0.00024121,2]
[391724166,1760753434866,-1001.19105085,0.00024121,2]
[391724167,1760753434875,-951.98514846,0.00024121,2]
[391724168,1760753434885,-500.0,0.00024235,2]
[391724169,1760753434894,-500.0,0.00024235,2]
[391724170,1760753434904,-492.71,0.00024236,2]
[391724171,1760753434914,-250.0,0.00024251,2]
[391724172,1760753434923,-400.0,0.00024258,2]
[391724173,1760753434933,-1159.84,0.0002427,2]
[391724174,1760753434942,-600.0,0.00024658,2]
[391724175,1760753434952,-501.29045281,0.00024668,2]
[391724176,1760753434961,-267.69355702,0.00024668,2]
[391724177,1760753434970,-502.971789,0.00024668,2]
[391724178,1760753434980,-1500.0,0.00024668,2]
[391724179,1760753434989,-1502.01498523,0.00024668,2]
[391724180,1760753434998,-154.55100335,0.00024668,2]
[391724181,1760753435008,-842.25916591,0.00024668,2]
[391724182,1760753435019,-1500.0,0.00024668,2]
[391724183,1760753435028,-1000.0,0.00024668,2]
[391724184,1760753435038,-500.81314369,0.00024668,2]
[391724185,1760753435047,-501.70774823,0.00024668,2]
[391724186,1760753435058,-278.99654968,0.000247,2]
[391724187,1760753435067,-5512.0,0.000247,5]
[391724188,1760753435076,-150.0,0.00024773,2]
[391724189,1760753435085,-150.27820042,0.00024773,2]
[391724190,1760753435094,-1001.29066107,0.00024783,2]
[391724191,1760753435103,-1023.94537523,0.00024783,2]
[391724192,1760753435113,-151.0,0.00024797,7]
[391724193,1760753435123,-251734.60106,0.000248,2]
[391724194,1760753435132,-151.0,0.000248,7]
[391724195,1760753435142,-151.0,0.000248,7]
[391724196,1760753435151,-151.0,0.000248,7]
[391724197,1760753435160,-151.0,0.000248,7]
[391724198,1760753435170,-151.0,0.000248,7]
[391724199,1760753435179,-154.481557,0.000248,7]
[391724200,1760753435188,-14548.81850494,0.00024807,2]
[391724201,1760753435203,-1184.59406126,0.00024807,2]
[391724202,1760753435212,-500.0,0.00024932,2]
[391724203,1760753435221,-500.0,0.00024932,2]
[391724204,1760753435231,-500.0,0.00024932,2]
[391724205,1760753435240,-500.0,0.00024932,2]
[391724206,1760753435251,-600.0,0.00024942,2]
[391724207,1760753435260,-15733.4125662,0.00024958,2]
[391724208,1760753435270,-1010.61,0.00025,2]
[391724209,1760753435280,-152.13,0.0002506,2]
[391724210,1760753435289,-8045.90370547,0.00025086,2]
[391724211,1760753435300,-152.856011,0.00025086,7]
[391724212,1760753435315,-600.0,0.00025206,2]
[391724213,1760753435324,-2000.0,0.00025216,2]
[391724214,1760753435335,-2003.9812218,0.00025216,2]
[391724215,1760753435344,-159.33797531,0.0002523,2]
[391724216,1760753435354,-7397.5335334,0.00025231,2]
[391724217,1760753435364,-2862.14,0.00025235,2]
[391724218,1760753435375,-15733.4125662,0.0002524,2]
[391724219,1760753435384,-15733.4125662,0.00025251,2]
[391724220,1760753435394,-150.6,0.00025255,2]
[391724221,1760753435403,-545.0,0.00025261,2]
[391724222,1760753435412,-545.0,0.00025261,2]
[391724223,1760753435422,-545.0,0.00025261,2]
[391724224,1760753435432,-545.0,0.00025261,2]
[391724225,1760753435441,-545.0,0.00025261,2]
[391724226,1760753435450,-545.0,0.00025261,2]
[391724227,1760753435459,-545.0,0.00025261,2]
[391724228,1760753435468,-545.0,0.00025261,2]
[391724229,1760753435477,-545.0,0.00025261,2]
[391724230,1760753435487,-545.0,0.00025261,2]
[391724231,1760753435496,-545.0,0.00025261,2]
[391724232,1760753435505,-545.0,0.00025261,2]
[391724233,1760753435514,-545.0,0.00025261,2]
[391724234,1760753435524,-545.0,0.00025261,2]
[391724235,1760753435533,-215.0,0.00025261,2]
[391724236,1760753435542,-215.0,0.00025261,2]
[391724237,1760753435552,-215.0,0.00025261,2]
[391724238,1760753435562,-215.0,0.00025261,2]
[391724239,1760753435572,-215.0,0.00025261,2]
[391724240,1760753435582,-215.0,0.00025261,2]
[391724241,1760753435591,-215.0,0.00025261,2]
[391724242,1760753435600,-215.0,0.00025261,2]
[391724243,1760753435609,-215.0,0.00025261,2]
[391724244,1760753435618,-215.0,0.00025261,2]
[391724245,1760753435627,-215.0,0.00025261,2]
[391724246,1760753435636,-215.0,0.00025261,2]
[391724247,1760753435645,-215.0,0.00025261,2]
[391724248,1760753435654,-215.0,0.00025261,2]
[391724249,1760753435664,-511.0,0.00025261,2]
[391724250,1760753435673,-511.0,0.00025261,2]
[391724251,1760753435682,-511.0,0.00025261,2]
[391724252,1760753435692,-511.0,0.00025261,2]
[391724253,1760753435701,-511.0,0.00025261,2]
[391724254,1760753435710,-511.0,0.00025261,2]
[391724255,1760753435720,-511.0,0.00025261,2]
[391724256,1760753435729,-511.0,0.00025261,2]
[391724257,1760753435738,-511.0,0.00025261,2]
[391724258,1760753435748,-511.0,0.00025261,2]
[391724259,1760753435758,-511.0,0.00025261,2]
[391724260,1760753435767,-511.0,0.00025261,2]
[391724261,1760753435776,-511.0,0.00025261,2]
[391724262,1760753435786,-511.0,0.00025261,2]
[391724263,1760753435795,-640.0,0.00025261,2]
[391724264,1760753435805,-640.0,0.00025261,2]
[391724265,1760753435815,-640.0,0.00025261,2]
[391724266,1760753435824,-640.0,0.00025261,2]
[391724267,1760753435834,-640.0,0.00025261,2]
[391724268,1760753435843,-640.0,0.00025261,2]
[391724269,1760753435853,-640.0,0.00025261,2]
[391724270,1760753435862,-640.0,0.00025261,2]
[391724271,1760753435872,-640.0,0.00025261,2]
[391724272,1760753435881,-640.0,0.00025261,2]
[391724273,1760753435890,-640.0,0.00025261,2]
[391724274,1760753435899,-640.0,0.00025261,2]
[391724275,1760753435908,-640.0,0.00025261,2]
[391724276,1760753435917,-640.0,0.00025261,2]
[391724277,1760753435927,-151.0,0.00025261,7]
[391724278,1760753435936,-151.0,0.00025261,7]
[391724279,1760753435945,-151.0,0.00025261,7]
[391724280,1760753435955,-151.0,0.00025261,7]
[391724281,1760753435964,-151.0,0.00025261,7]
[391724282,1760753435974,-151.0,0.00025261,7]
[391724283,1760753435983,-151.0,0.00025261,7]
[391724284,1760753435992,-151.0,0.00025261,7]
[391724285,1760753436001,-151.0,0.00025261,7]
[391724286,1760753436013,-151.0,0.00025261,7]
[391724287,1760753436027,-151.0,0.00025261,7]
[391724288,1760753436040,-151.934003,0.00025261,7]
[391724289,1760753436053,-151.0,0.00025261,7]
[391724290,1760753436064,-151.0,0.00025261,7]
[391724291,1760753436075,-151.0,0.00025261,7]
[391724292,1760753436087,-151.0,0.00025261,7]
[391724293,1760753436099,-154.84,0.00025264,2]
[391724294,1760753436111,-156.66,0.00025278,2]
[391724295,1760753436122,-313.91,0.00025278,2]
[391724296,1760753436134,-15733.4125662,0.0002528,2]
[391724297,1760753436146,-500.0,0.000253,2]
[391724298,1760753436159,-250.0,0.00025321,2]
[391724299,1760753436170,-151.33,0.00025345,2]
[391724300,1760753436181,-151.81,0.00025398,2]
[391724301,1760753436191,-210.50429586,0.00025472,2]
[391724302,1760753436202,-5537.49925102,0.00025498,2]
[391724303,1760753436319,-258.52999999,0.00025498,2]
[391724304,1760753436336,-5826.9687389,0.00025498,2]
[391724310,1760753438042,-150.0,0.00025278,2]
[391724313,1760753438054,-767.54511471,0.00025498,2]
[391724315,1760753438069,-274.34754293,0.00025498,2]
[391724316,1760753438082,-1300.0,0.00025498,2]
[391724317,1760753438147,-1768.52191865,0.00025498,2]
[391724318,1760753438159,-226.86861653,0.00025498,2]
[391724319,1760753438171,-707.10990996,0.00025498,2]
[391724320,1760753438183,-1010.61,0.000255,2]
[391724321,1760753438194,-767.93615811,0.00025508,2]
[391724322,1760753438208,-7448.93139138,0.00025508,2]
[391724323,1760753438221,-1833.51836765,0.00025508,2]
[391724324,1760753438233,-12964.03126356,0.00025508,2]
[391724325,1760753438246,-299.09,0.00025582,2]
[391724326,1760753438257,-800.0,0.00025627,2]
[391724327,1760753438267,-151.77,0.00025685,2]
[391724328,1760753438279,-278.99654966,0.00025687,2]
[391724329,1760753438290,-411.99568707,0.00025711,2]
[391724330,1760753438301,-150.35,0.00025711,2]
[391724332,1760753438316,-15733.4125662,0.0002572,2]
[391724334,1760753438327,-31857.8650334,0.00025741,2]
[391724336,1760753438337,-5000.0,0.00025745,2]
[391724338,1760753438349,-600.0,0.00025754,2]
[391724340,1760753438359,-2500.0,0.00025764,2]
[391724342,1760753438370,-404.19242946,0.00025777,2]
[391724344,1760753438382,-792.83288348,0.00025783,2]
[391724346,1760753438392,-666.0,0.00025788,3]
[391724349,1760753438403,-1000.0,0.000258,2]
[391724350,1760753438413,-1000.0,0.000258,3]
[391724351,1760753438423,-354.715,0.00025822,11]
[391724352,1760753438433,-5528.133,0.00025822,11]
[391724353,1760753438444,-350.0,0.00025868,2]
[391724354,1760753438455,-293.48652515,0.00025887,2]
[391724355,1760753438465,-5014.83,0.00025888,2]
[391724356,1760753438476,-2818.0,0.00025949,2]
[391724357,1760753438486,-213.82927506,0.00025958,2]
[391724358,1760753438497,-150.23,0.00025972,2]
[391724359,1760753438507,-10535.9730384,0.00025979,2]
[391724360,1760753438517,-477.544422,0.00026,2]
[391724361,1760753438528,-151.0,0.00026,7]
[391724362,1760753438538,-1010.61,0.00026,30]
[391724363,1760753438548,-214.2921159,0.00026071,4]
[391724364,1760753438559,-6567.47955817,0.00026114,2]
[391724366,1760753438577,-1009.46715855,0.00026114,2]
[391724368,1760753438589,-9519.62534888,0.00026114,2]
[391724370,1760753438602,-3231.4279344,0.00026114,2]
[391724372,1760753438613,-212.02291941,0.00026133,2]
[391724375,1760753438623,-254.55,0.00026173,2]
[391724377,1760753438635,-151.0,0.0002619,7]
[391724379,1760753438645,-151.0,0.0002619,7]
[391724381,1760753438655,-151.0,0.0002619,7]
[391724383,1760753438667,-151.0,0.0002619,7]
[391724385,1760753438679,-151.0,0.0002619,7]
[391724387,1760753438691,-151.0,0.0002619,7]
[391724389,1760753438702,-151.0,0.0002619,7]
[391724390,1760753438713,-151.0,0.0002619,7]
[391724391,1760753438725,-151.0,0.0002619,7]
[391724392,1760753438736,-151.0,0.0002619,7]
[391724393,1760753438748,-151.0,0.0002619,7]
[391724394,1760753438759,-151.0,0.0002619,7]
[391724395,1760753438771,-154.747538,0.0002619,7]
[391724396,1760753438783,-152.181554,0.0002619,7]
[391724397,1760753438794,-151.0,0.0002619,7]
[391724398,1760753438806,-237.592684,0.0002619,7]
[391724399,1760753438819,-151.0,0.0002619,7]
[391724400,1760753438831,-151.0,0.0002619,7]
[391724401,1760753438843,-151.0,0.0002619,7]
[391724402,1760753438855,-151.0,0.00026233,7]
[391724403,1760753438867,-151.0,0.00026233,7]
[391724404,1760753438879,-151.0,0.00026233,7]
[391724405,1760753438890,-160.69943,0.00026233,7]
[391724406,1760753438900,-151.0,0.00026233,7]
[391724407,1760753438911,-151.0,0.00026233,7]
[391724408,1760753438921,-151.0,0.00026233,7]
[391724409,1760753438932,-151.0,0.00026233,7]
[391724410,1760753438943,-151.0,0.00026233,7]
[391724411,1760753438955,-229.224098,0.00026233,7]
[391724412,1760753438966,-229.224098,0.00026233,7]
[391724413,1760753438977,-151.0,0.00026233,7]
[391724414,1760753438988,-229.224098,0.00026233,7]
[391724415,1760753438999,-229.224098,0.00026233,7]
[391724416,1760753439011,-151.0,0.00026233,7]
[391724417,1760753439023,-151.0,0.00026233,7]
[391724418,1760753439035,-151.0,0.00026233,7]
[391724419,1760753439047,-151.0,0.00026233,7]
[391724420,1760753439060,-161.418696,0.00026233,7]
[391724421,1760753439072,-151.0,0.00026233,7]
[391724422,1760753439084,-174.178245,0.00026233,7]
[391724423,1760753439097,-151.0,0.00026233,7]
[391724424,1760753439110,-151.0,0.00026233,7]
[391724425,1760753439125,-157.560013,0.00026233,7]
[391724426,1760753439138,-154.520789,0.00026233,7]
[391724427,1760753439152,-151.0,0.00026233,7]
[391724428,1760753439162,-151.0,0.00026233,7]
[391724429,1760753439172,-151.0,0.00026233,7]
[391724430,1760753439182,-151.0,0.00026233,7]
[391724431,1760753439193,-151.0,0.00026233,7]
[391724432,1760753439202,-166.43666379,0.00026233,7]
[391724433,1760753439212,-151.0,0.00026233,7]
[391724434,1760753439222,-151.0,0.00026243,7]
[391724435,1760753439231,-151.0,0.00026243,7]
[391724436,1760753439241,-151.0,0.00026243,7]
[391724437,1760753439251,-151.0,0.00026243,7]
[391724438,1760753439261,-1395.04431942,0.00026243,2]
[391724439,1760753439274,-4712.62579405,0.00026243,2]
[391724440,1760753439286,-628.73244732,0.00026243,2]
[391724441,1760753439297,-261.52156641,0.00026243,2]
[391724445,1760753440195,-43504.6305986,0.00026243,2]
[391724446,1760753440404,-792.83288348,0.00026298,2]
[391724447,1760753440428,-600.0,0.00026302,2]
[391724448,1760753440441,-3000.0,0.00026312,2]
[391724449,1760753440450,-1000.0,0.00026312,2]
[391724450,1760753440459,-792.83288348,0.00026401,2]
[391724451,1760753440468,-223.46300922,0.00026416,2]
[391724453,1760753440478,-166.66,0.00026467,2]
[391724455,1760753440487,-1010.61,0.000265,30]
[391724456,1760753440496,-792.83288349,0.00026594,2]
[391724457,1760753440505,-2369.03,0.00026622,2]
[391724458,1760753440515,-278.99654966,0.00026673,2]
[391724459,1760753440524,-375.23,0.00026676,2]
[391724460,1760753440539,-8045.90370547,0.00026763,2]
[391724461,1760753440548,-66950.193019,0.00026783,2]
[391724462,1760753440558,-152.829626,0.00026783,7]
[391724463,1760753440567,-151.0,0.00026783,7]
[391724464,1760753440576,-151.0,0.00026783,7]
[391724465,1760753440586,-263.590115,0.00026783,7]
[391724466,1760753440595,-151.0,0.00026783,7]
[391724467,1760753440604,-272.93916,0.00026783,7]
[391724468,1760753440613,-151.0,0.00026783,7]
[391724469,1760753440622,-151.0,0.00026783,7]
[391724470,1760753440631,-201.871041,0.00026783,7]
[391724471,1760753440641,-152.529609,0.00026783,7]
[391724472,1760753440650,-151.0,0.00026783,7]
[391724473,1760753440659,-151.0,0.00026783,7]
[391724474,1760753440669,-151.0,0.00026783,7]
[391724475,1760753440678,-151.0,0.00026783,7]
[391724476,1760753440687,-151.0,0.00026783,7]